bitfinex/quotes_ETHUSD_20240828
["timestamp","ask_amount","ask_price","bid_price","bid_amount"]
[1724863116297,4.01465,2490.9,2490.1,6.36445]
[1724863116298,4.01465,2490.9,2490.2,4.01564]
[1724863116460,8.0294,2490.9,2490.8,0.05043457]
[1724863116792,4.01465,2490.9,2490.2,4.01564]
[1724863117002,4.01465,2490.9,2490.8,0.05043457]
[1724863117165,3.0,2491.2,2490.1,2.3486]
[1724863117505,4.01406,2491.3,2490.7,4.01492]
[1724863117656,3.0,2491.2,2490.4,8.03064]
[1724863117857,3.0,2491.2,2490.8,0.05043457]
[1724863118058,3.0,2491.2,2490.6,4.01509]
[1724863118274,3.0,2491.2,2490.9,0.05033961]
[1724863118453,4.01429,2491.1,2490.4,4.01529]
[1724863118653,4.01429,2491.1,2490.2,4.01564]
[1724863118654,4.0147,2490.9,2490.2,4.01564]
[1724863118918,4.01504,2490.7,2490.0,4.41957]
[1724863119135,0.3,2491.1,2490.3,4.01549]
[1724863119136,4.01469,2490.9,2490.3,4.01549]
[1724863119420,4.01469,2490.9,2489.7,2.8203]
[1724863119421,4.01434,2491.1,2490.5,4.01511]
[1724863119567,3.0,2491.0,2490.5,4.01511]
[1724863119975,3.0,2491.1,2490.5,4.01511]
[1724863120383,7.01429,2491.1,2490.5,4.01511]
[1724863120713,7.01429,2491.1,2490.6,4.01509]
[1724863120714,3.0,2491.1,2490.6,4.01509]
[1724863121010,3.0,2491.2,2490.6,4.01509]
[1724863121897,3.0,2491.2,2490.7,4.01492]
[1724863122142,2.4959,2491.4,2490.9,4.0146]
[1724863122270,6.3801,2491.7,2490.7,4.01485]
[1724863122473,1.0,2492.0,2491.0,2.3853]
[1724863122702,4.01381,2491.4,2490.7,4.41839]
[1724863122925,4.01381,2491.4,2490.8,4.01475]
[1724863123136,4.01381,2491.4,2490.3,0.6401]
[1724863123137,0.41627003,2491.3,2490.3,4.01544]
[1724863123336,5.01289,2492.0,2490.3,4.01544]
[1724863123337,4.01456,2491.0,2490.3,4.01544]
[1724863123502,2.3378,2491.2,2490.5,4.01514]
[1724863123503,6.35202,2491.2,2490.5,4.01514]
[1724863123699,4.01387,2491.4,2490.8,4.01475]
[1724863124200,4.01414,2491.2,2490.6,4.01494]
[1724863124426,4.01414,2491.2,2490.4,4.01527]
[1724863124638,4.01458,2491.0,2490.4,4.01527]
[1724863124840,4.01503,2490.7,2490.0,4.01592]
[1724863125049,4.0147,2490.9,2489.7,6.41628]
[1724863125337,3.0,2491.3,2489.7,6.41628]
[1724863125338,0.3,2491.2,2490.6,4.01503]
[1724863125509,0.3,2491.2,2490.7,0.08029442]
[1724863125716,0.3,2491.2,2490.3,2.3998]
[1724863125921,3.0,2491.3,2490.7,4.01479]
[1724863126129,3.0,2491.2,2490.7,4.01479]
[1724863126406,3.0,2491.2,2490.5,4.01518]
[1724863126407,4.01431,2491.1,2490.5,4.01518]
[1724863126740,4.01431,2491.1,2490.5,4.01516]
[1724863127042,3.3,2491.2,2490.5,4.01516]
[1724863127253,4.01471,2490.9,2490.3,4.01557]
[1724863127610,6.35219,2491.1,2490.3,0.08030095]
[1724863127948,3.0,2491.2,2490.7,4.0149]
[1724863128098,7.01417,2491.2,2490.6,4.01508]
[1724863128298,7.01417,2491.2,2490.5,4.01517]
[1724863128299,3.0,2491.2,2490.8,0.04987129]
[1724863128608,4.43434869,2491.4,2490.7,4.06484627]
[1724863128923,4.01416,2491.2,2490.8,0.04987129]
[1724863129131,4.0143,2491.1,2490.5,8.03032]
[1724863129332,4.0143,2491.1,2490.9,0.04977633]
[1724863129503,4.01416,2491.2,2490.6,4.01499]
[1724863129708,4.01416,2491.2,2491.0,0.04968137]
[1724863130048,4.01416,2491.2,2490.5,4.01513]
[1724863130268,4.01416,2491.2,2491.1,0.04958642]
[1724863130460,4.01416,2491.2,2490.6,4.01506]
[1724863130617,4.01416,2491.2,2490.6,4.06512125]
[1724863130821,4.01416,2491.2,2491.1,0.04958642]
[1724863131016,4.01431,2491.1,2490.5,4.01513]
[1724863131238,4.01471,2490.9,2490.2,4.0157]
[1724863131439,4.01471,2490.9,2490.3,4.01547]
[1724863131643,4.01439,2491.1,2490.3,8.03089]
[1724863131959,4.01462,2490.9,2490.4,4.0154]
[1724863132118,4.01439,2491.1,2490.4,4.0154]
[1724863132457,4.01437,2491.1,2490.5,4.01524]
[1724863132658,4.01423,2491.2,2490.6,4.01501]
[1724863132864,0.42052869,2491.4,2490.1,6.81917]
[1724863133159,4.01505,2490.7,2490.1,6.81917]
[1724863133358,4.01505,2490.7,2490.2,4.01571]
[1724863133658,4.01477,2490.8,2490.1,6.81917]
[1724863133817,4.01477,2490.8,2490.3,4.01556]
[1724863134022,4.01494,2490.7,2490.1,10.83493]
[1724863134242,4.01477,2490.8,2490.2,4.01566]
[1724863134966,4.01455,2491.0,2490.3,4.01554]
[1724863134967,4.01461,2490.9,2490.3,4.01554]
[1724863135144,4.01467,2490.9,2490.4,4.01532]
[1724863135354,4.01467,2490.9,2490.2,4.01563]
[1724863135521,4.01467,2490.9,2490.4,4.01541]
[1724863135871,4.01467,2490.9,2490.4,8.03074]
[1724863136245,4.01467,2490.9,2490.4,4.01533]
[1724863136575,4.0142,2491.2,2490.4,0.08029738]
[1724863136724,4.01446,2491.0,2490.5,4.01513]
[1724863136922,4.01446,2491.0,2490.3,4.01548]
[1724863137516,4.01446,2491.0,2490.4,4.01533]
[1724863137721,4.01423,2491.2,2490.5,4.01512]
[1724863137954,3.42052869,2491.4,2490.3,8.03093]
[1724863137955,4.01459,2491.0,2490.3,8.03093]
[1724863138149,4.01479,2490.8,2490.3,4.01543]
[1724863138527,4.01519,2490.6,2490.1,6.81918]
[1724863138825,4.01494,2490.7,2490.2,4.01573]
[1724863139476,4.01544,2490.4,2490.1,0.4036]
[1724863139755,8.03096,2490.4,2489.8,10.0039]
[1724863139956,4.01525,2490.5,2489.9,4.01614]
[1724863140173,4.01517,2490.6,2489.9,4.01612]
[1724863140456,8.03043,2490.6,2489.9,4.01612]
[1724863140677,2.3029,2491.7,2490.8,2.4492]
[1724863140821,2.3029,2491.7,2490.5,4.01515]
[1724863140822,4.01437,2491.1,2490.5,4.01515]
[1724863141022,4.01437,2491.1,2489.7,9.37877138]
[1724863141023,2.3029,2490.9,2489.9,4.01609]
[1724863141270,2.3029,2490.9,2490.0,4.01598]
[1724863141271,4.01538,2490.5,2490.0,4.01598]
[1724863141419,4.01503,2490.7,2489.6,3.0]
[1724863141623,6.31761,2490.9,2489.6,3.0]
[1724863141624,6.31761,2490.9,2490.3,4.01545]
[1724863141821,6.31761,2490.9,2490.3,4.01555]
[1724863142024,4.01478,2490.8,2490.3,4.01555]
[1724863142325,3.0,2491.1,2490.2,0.0803013]
[1724863142326,7.0144,2491.1,2490.2,0.0803013]
[1724863142668,4.0148,2490.8,2490.3,4.01548]
[1724863142850,4.01445,2491.0,2490.4,4.0153]
[1724863143024,3.0,2491.1,2490.4,0.13061842]
[1724863143227,3.0,2491.1,2490.7,4.01479]
[1724863143461,2.4517,2491.3,2490.8,8.02929]
[1724863143679,4.01389,2491.4,2490.9,4.01458]
[1724863143828,4.01397,2491.3,2490.8,4.06455756]
[1724863144027,4.01389,2491.4,2491.0,0.04994641]
[1724863144227,4.01389,2491.4,2490.9,4.06452137]
[1724863144460,8.02784,2491.4,2491.1,0.04985146]
[1724863144775,8.02784,2491.4,2490.8,4.01462]
[1724863144776,4.01389,2491.4,2491.2,0.04975652]
[1724863144928,4.01389,2491.4,2490.8,4.01462]
[1724863145277,4.0136,2491.6,2491.3,0.04966158]
[1724863145489,4.0136,2491.6,2490.8,4.01465]
[1724863145490,2.2736,2491.7,2491.2,4.01398]
[1724863145771,4.01351,2491.6,2491.4,0.04956665]
[1724863145936,4.01364,2491.5,2490.9,4.01449]
[1724863146140,4.0138,2491.4,2490.9,4.01449]
[1724863146355,4.01365,2491.5,2491.0,4.01435]
[1724863146664,3.4886,2492.0,2491.1,0.08028019]
[1724863146827,4.01352,2491.6,2491.1,4.01428]
[1724863147029,4.01374,2491.5,2491.0,4.01435]
[1724863147349,4.01381,2491.4,2490.8,4.01462]
[1724863147667,4.01352,2491.6,2491.0,4.01434]
[1724863148074,4.01375,2491.5,2490.8,4.01461]
[1724863148230,4.01375,2491.5,2490.7,0.4036]
[1724863148231,8.02808,2491.3,2490.7,0.4036]
[1724863148541,2.3017,2491.4,2490.9,4.01453]
[1724863148731,8.02747,2491.5,2490.9,4.01453]
[1724863148928,4.01382,2491.4,2490.9,4.01453]
[1724863149264,4.01382,2491.4,2490.6,4.015]
[1724863149265,0.42042588,2491.4,2490.6,4.015]
[1724863149471,0.42042588,2491.4,2490.4,2.7044]
[1724863149472,4.01424,2491.2,2490.4,0.4036]
[1724863149636,4.01437,2491.1,2490.5,4.0152]
[1724863150249,4.01445,2491.0,2490.5,4.0152]
[1724863150751,0.42042588,2491.4,2490.6,4.01498]
[1724863150958,4.43431588,2491.4,2490.8,4.01469]
[1724863151275,4.43431588,2491.4,2490.5,4.01517]
[1724863151276,0.42042588,2491.4,2490.5,4.01517]
[1724863151567,7.43431588,2491.4,2490.8,4.01468]
[1724863151772,4.43431588,2491.4,2490.8,4.01468]
[1724863151970,0.42042588,2491.4,2490.5,8.03029]
[1724863152170,4.01447,2491.0,2490.5,4.01512]
[1724863152680,4.01447,2491.0,2490.5,8.03028]
[1724863152868,4.01447,2491.0,2490.5,4.01512]
[1724863153068,4.01424,2491.2,2490.5,4.01512]
[1724863153293,4.01488,2490.8,2490.3,4.01546]
[1724863153455,8.02848,2491.2,2490.5,4.01512]
[1724863153780,2.72212588,2491.4,2490.7,4.0149]
[1724863153781,4.01398,2491.3,2490.7,4.0149]
[1724863153997,3.0,2491.2,2490.7,8.02974]
[1724863154146,3.0,2491.2,2490.7,4.01484]
[1724863154665,6.73593588,2491.4,2490.7,4.01484]
[1724863154986,4.01415,2491.2,2490.7,4.01484]
[1724863156689,4.01424,2491.2,2490.5,4.0151]
[1724863156857,4.01424,2491.2,2490.6,4.01498]
[1724863157046,4.01456,2491.0,2490.1,2.89523]
[1724863157242,4.01456,2491.0,2490.4,4.01528]
[1724863157549,4.01456,2491.0,2490.5,4.01513]
[1724863157883,4.01423,2491.2,2490.2,7.1659]
[1724863158182,4.01423,2491.2,2490.7,4.01493]
[1724863158703,8.44821588,2491.4,2490.9,4.0146]
[1724863158985,4.01396,2491.3,2491.0,0.0476995]
[1724863159144,4.01415,2491.2,2490.7,4.01489]
[1724863159344,4.01397,2491.3,2490.8,4.06264943]
[1724863159573,4.01421,2491.2,2490.8,0.04788943]
[1724863159787,4.01421,2491.2,2490.6,11.18089]
[1724863159940,0.42042588,2491.4,2490.7,0.0479844]
[1724863159941,4.01462,2490.9,2490.7,0.0479844]
[1724863160177,4.01447,2491.0,2490.7,0.0479844]
[1724863160380,4.01447,2491.0,2490.5,4.01524]
[1724863160625,4.01447,2491.0,2490.6,0.04807938]
[1724863160981,4.01443,2491.1,2490.6,4.06314938]
[1724863161296,4.01429,2491.2,2490.7,4.01484]
[1724863161607,4.01432,2491.1,2490.8,0.04792251]
[1724863161985,4.01457,2491.0,2490.4,4.01528]
[1724863162186,4.01463,2490.9,2490.5,0.04820745]
[1724863162519,4.01445,2491.0,2490.5,0.04820745]
[1724863162723,4.0144,2491.1,2490.5,0.04820745]
[1724863162924,4.01456,2491.0,2490.5,4.06332745]
[1724863163097,4.01456,2491.0,2490.5,4.01512]
[1724863163305,4.01461,2490.9,2490.6,0.04812349]
[1724863163624,4.01473,2490.9,2490.6,0.04812349]
[1724863163994,4.0144,2491.1,2490.6,0.04812349]
[1724863164210,4.01408,2491.3,2490.6,4.06311349]
[1724863164418,4.01408,2491.3,2490.8,4.01469]
[1724863164723,0.42044738,2491.2,2490.8,4.01469]
[1724863164907,4.43458738,2491.2,2490.9,0.04795985]
[1724863165629,4.01429,2491.1,2490.4,4.0153]
[1724863165923,4.01429,2491.1,2490.5,4.01522]
[1724863165924,4.01453,2491.0,2490.5,4.01522]
[1724863166436,2.2987,2491.1,2490.3,7.1659]
[1724863166623,2.2987,2491.1,2490.3,11.18139]
[1724863166624,4.28647474,2491.0,2490.3,11.18139]
[1724863166920,4.28647474,2491.0,2490.5,4.01516]
[1724863166921,4.01456,2491.0,2490.5,4.01516]
[1724863167226,4.01456,2491.0,2490.5,8.03034]
[1724863167442,4.01456,2491.0,2490.5,4.01516]
[1724863167600,2.2987,2491.1,2490.3,7.1659]
[1724863167601,4.01461,2490.9,2490.3,7.1659]
[1724863167809,4.01494,2490.7,2490.3,7.1659]
[1724863168022,4.01461,2490.9,2490.3,7.1659]
[1724863168199,2.2987,2491.1,2490.4,4.01537]
[1724863168541,4.01446,2491.0,2490.5,4.01514]
[1724863169147,4.43467738,2491.2,2490.5,4.01514]
[1724863169306,4.0144,2491.1,2490.6,4.01505]
[1724863169637,4.43467738,2491.2,2490.5,4.01524]
[1724863169638,8.02902,2491.0,2490.5,4.01524]
[1724863169843,4.01463,2490.9,2490.5,4.01524]
[1724863170010,4.01463,2490.9,2490.4,4.01541]
[1724863170205,4.01491,2490.8,2490.3,11.18134]
[1724863170420,4.01496,2490.7,2490.3,11.18134]
[1724863170630,4.01494,2490.7,2490.3,7.1659]
[1724863170929,4.01512,2490.6,2490.3,7.1659]
[1724863171092,4.01494,2490.7,2490.3,7.1659]
[1724863171499,4.01541,2490.4,2489.8,7.1659]
[1724863171938,4.01541,2490.4,2489.9,4.0162]
[1724863172098,8.03094,2490.4,2489.9,4.0162]
[1724863172298,4.0156,2490.3,2489.9,4.0162]
[1724863172501,4.01575,2490.2,2489.8,7.1659]
[1724863172742,4.01632,2489.9,2489.5,7.1659]
[1724863172943,4.01632,2489.9,2489.3,6.32107]
[1724863172944,4.01632,2489.9,2489.3,10.33815]
[1724863173147,8.03224,2490.0,2489.6,0.0443167]
[1724863173309,4.01606,2490.0,2489.4,4.017]
[1724863173504,4.01606,2490.0,2489.7,0.0445026]
[1724863173849,6.45924,2490.2,2489.8,0.04440755]
[1724863174145,3.0,2490.1,2489.5,4.01685]
[1724863174510,3.0,2490.1,2489.6,0.04459766]
[1724863174705,4.0155,2490.4,2489.8,4.01628]
[1724863174950,3.0,2490.3,2489.9,0.08031431]
[1724863175252,3.0,2490.3,2489.9,0.0443125]
[1724863175957,7.01567,2490.3,2489.9,0.0443125]
[1724863176121,3.0,2490.3,2489.9,0.0443125]
[1724863176307,3.0,2490.3,2489.7,4.01643]
[1724863176510,3.0,2490.3,2490.0,0.04438279]
[1724863176753,4.01575,2490.2,2489.7,4.01643]
[1724863177057,4.01575,2490.2,2489.8,0.08031726]
[1724863177209,4.01575,2490.2,2489.8,0.12489013]
[1724863177412,4.01575,2490.2,2489.8,0.04457287]
[1724863177757,4.01575,2490.2,2489.7,4.01643]
[1724863177940,3.0,2490.3,2489.9,0.04492963]
[1724863178122,2.2898,2490.6,2489.9,4.01608]
[1724863178123,6.305,2490.6,2489.9,4.01608]
[1724863178454,4.01531,2490.5,2490.0,0.12514933]
[1724863178860,6.305,2490.6,2490.0,0.0448401]
[1724863178861,4.01542,2490.4,2490.0,0.0448401]
[1724863179728,2.2898,2490.6,2490.0,0.0448401]
[1724863179937,4.01583,2490.2,2489.7,4.01652]
[1724863180235,4.01558,2490.3,2489.8,4.01637]
[1724863180539,4.01558,2490.3,2489.8,4.14165771]
[1724863180719,4.01549,2490.4,2489.9,4.01622]
[1724863181163,4.01549,2490.4,2490.0,0.04477948]
[1724863182626,4.01549,2490.4,2489.7,4.01642]
[1724863182835,8.03106,2490.4,2489.8,4.06126956]
[1724863183181,8.031,2490.4,2489.8,4.06126956]
[1724863183332,4.01549,2490.4,2489.8,4.06126956]
[1724863183728,8.03101,2490.4,2489.8,4.06126956]
[1724863183929,4.01549,2490.4,2489.9,4.01621]
[1724863184153,4.01516,2490.6,2489.9,2.3214]
[1724863184474,7.4354274,2490.8,2490.0,4.06071948]
[1724863184768,4.01495,2490.7,2490.2,4.01565]
[1724863185131,4.01495,2490.7,2490.3,0.04447789]
[1724863185354,4.01525,2490.5,2490.3,0.04447789]
[1724863185560,4.01503,2490.7,2490.4,0.04437737]
[1724863185775,4.0152,2490.6,2490.4,0.04437737]
[1724863186063,4.01544,2490.4,2490.0,11.18183]
[1724863186265,4.01535,2490.5,2490.0,11.18183]
[1724863186769,4.01544,2490.4,2490.0,11.18183]
[1724863188269,4.01544,2490.4,2490.1,0.04466241]
[1724863188632,7.4354474,2490.8,2490.1,0.12497376]
[1724863188833,11.4503474,2490.8,2490.2,4.01568]
[1724863189034,7.4354474,2490.8,2490.3,4.05987253]
[1724863189576,3.4205574,2490.8,2490.3,0.04431253]
[1724863189871,0.4205574,2490.8,2490.7,4.01493]
[1724863190172,0.4205574,2490.8,2490.7,10.37086]
[1724863190387,0.4205574,2490.8,2490.7,12.21162843]
[1724863190883,0.4205574,2490.8,2490.7,12.25543977]
[1724863191445,0.4205574,2490.8,2490.7,0.04381134]
[1724863191888,0.4205574,2490.8,2490.5,4.01516]
[1724863192183,0.4205574,2490.8,2490.6,0.04359786]
[1724863192687,4.01493,2490.7,2490.6,0.04359786]
[1724863193090,4.4353374,2490.8,2490.3,7.1659]
[1724863193248,8.246272,2490.7,2489.3,3.99280283]
[1724863193453,8.246272,2490.7,2489.0,0.08034914]
[1724863193454,4.01704,2489.4,2489.0,0.08034914]
[1724863193652,4.01679,2489.6,2488.9,4.01774]
[1724863193873,4.01679,2489.6,2489.0,0.43067676]
[1724863194074,3.0,2489.5,2489.0,0.43067676]
[1724863194386,4.0165,2489.8,2489.1,0.0803423]
[1724863194552,4.0165,2489.8,2489.2,4.01724]
[1724863194884,4.0161,2490.0,2489.3,4.09737402]
[1724863195080,4.0161,2490.0,2489.5,4.01684]
[1724863195283,0.42061184,2489.7,2489.5,4.01684]
[1724863195448,0.42061184,2489.7,2489.3,4.01704]
[1724863195648,0.42061184,2489.7,2489.4,4.01693]
[1724863195866,0.42061184,2489.7,2489.4,4.820327]
[1724863196071,0.42061184,2489.7,2489.4,0.803397]
[1724863196659,0.42061184,2489.7,2489.4,0.88372009]
[1724863196887,4.43720184,2489.7,2489.1,4.24493]
[1724863197102,4.01671,2489.6,2489.1,4.24493]
[1724863197494,4.01722,2489.3,2488.7,8.03619]
[1724863197823,2.4933,2489.6,2488.7,2.3548]
[1724863198100,4.01778,2489.0,2488.4,2.4019]
[1724863198315,4.01785,2488.9,2488.4,2.4019]
[1724863198513,4.01841,2488.6,2488.0,6.3862]
[1724863199190,4.01849,2488.5,2488.0,2.367]
[1724863200069,4.01849,2488.5,2487.6,0.80576043]
[1724863200070,4.01892,2488.3,2487.7,6.29062]
[1724863200268,4.01922,2488.1,2487.6,0.40216043]
[1724863200594,4.01922,2488.1,2487.5,4.02001]
[1724863200772,8.03845,2488.1,2487.6,0.04456937]
[1724863200972,2.3607,2488.4,2487.6,0.04456937]
[1724863200973,4.01891,2488.3,2487.6,0.04456937]
[1724863201208,8.03779,2488.3,2487.7,4.01976]
[1724863201532,4.01889,2488.3,2487.8,0.04454454]
[1724863201668,4.01856,2488.5,2487.8,0.04454454]
[1724863201669,4.01856,2488.5,2487.8,0.12492786]
[1724863201864,10.39717,2488.7,2487.8,0.47820558]
[1724863202068,10.39717,2488.7,2487.6,4.65732794]
[1724863202069,4.01818,2488.7,2488.0,2.3079]
[1724863202311,4.01818,2488.7,2488.1,4.2498]
[1724863202514,4.01854,2488.5,2488.1,0.04425897]
[1724863202811,4.01818,2488.7,2488.1,4.06335897]
[1724863203016,7.01793,2488.9,2488.1,0.04425897]
[1724863203167,4.01786,2488.9,2488.4,4.01863]
[1724863203368,4.01786,2488.9,2488.5,0.04387833]
[1724863204105,4.0176,2489.1,2488.6,4.01828]
[1724863204313,4.01717,2489.4,2488.7,0.08035688]
[1724863204469,4.01717,2489.4,2488.9,4.0178]
[1724863204807,0.42061184,2489.7,2489.0,0.04325367]
[1724863205011,0.42061184,2489.7,2489.0,4.01758]
[1724863205212,0.42061184,2489.7,2489.1,0.12349861]
[1724863205622,0.42061184,2489.7,2489.3,4.01705]
[1724863205933,0.42061184,2489.7,2489.4,0.0428733]
[1724863206483,4.01675,2489.6,2489.4,0.0428733]
[1724863206717,4.43728184,2489.7,2489.0,8.01034283]
[1724863207019,4.43728184,2489.7,2489.0,3.99280283]
[1724863207020,4.01711,2489.4,2489.0,3.99280283]
[1724863207315,0.42061184,2489.7,2489.1,4.06019065]
[1724863207525,1.05705051,2489.7,2489.1,0.04270065]
[1724863207728,4.01719,2489.3,2489.1,0.04270065]
[1724863208408,4.01735,2489.2,2489.1,0.04270065]
[1724863208719,4.01766,2489.1,2488.5,4.01837]
[1724863208937,6.44732,2489.4,2489.1,0.04280544]
[1724863209113,4.01692,2489.5,2488.9,4.01774]
[1724863209281,4.01632,2489.9,2489.2,0.04271035]
[1724863209484,3.0,2490.0,2489.3,4.01718]
[1724863209797,3.0,2490.0,2489.5,2.331]
[1724863210100,3.0,2490.0,2489.9,8.03244]
[1724863210627,3.0,2490.0,2489.9,13.52108809]
[1724863210926,3.0,2490.0,2489.9,15.2748479]
[1724863211625,3.0,2490.0,2489.9,11.2586279]
[1724863211788,3.0,2490.0,2489.9,9.50486809]
[1724863212332,3.0,2490.0,2489.9,0.04504809]
[1724863212830,3.0,2490.0,2489.9,4.01622]
[1724863213141,3.0,2490.0,2489.9,4.06126809]
[1724863213319,3.0,2490.0,2489.9,0.04504809]
[1724863213638,3.0,2490.0,2489.7,4.01651]
[1724863213921,3.42066143,2490.0,2489.8,0.04514992]
[1724863214293,3.42066143,2490.0,2489.6,4.0166]
[1724863214494,3.42066143,2490.0,2489.9,0.04204489]
[1724863214703,3.42066143,2490.0,2489.6,4.01659]
[1724863214920,3.42066143,2490.0,2489.9,0.04711968]
[1724863215233,3.42066143,2490.0,2489.9,0.04718329]
[1724863215399,3.42066143,2490.0,2489.8,4.0163]
[1724863215611,3.42066143,2490.0,2489.9,8.07962329]
[1724863216231,3.42066143,2490.0,2489.9,0.04718329]
[1724863216393,3.42066143,2490.0,2489.7,4.01641]
[1724863216591,3.42066143,2490.0,2489.8,0.05113067]
[1724863216794,3.42066143,2490.0,2489.5,10.49034]
[1724863217132,3.42066143,2490.0,2489.7,4.01641]
[1724863217301,7.43681143,2490.0,2489.6,0.05136831]
[1724863217502,4.35828614,2489.9,2489.8,0.04719754]
[1724863217724,4.35828614,2489.9,2489.1,3.99280283]
[1724863217725,3.42066143,2490.0,2489.7,0.04730722]
[1724863217892,4.01632,2489.9,2489.4,8.03385]
[1724863218090,4.01631,2489.9,2489.8,0.04714666]
[1724863218320,4.01631,2489.9,2489.4,4.01692]
[1724863218493,3.42066143,2490.0,2489.4,4.017]
[1724863218693,4.01632,2489.9,2489.5,0.04408459]
[1724863218922,8.03264,2489.9,2489.5,0.04408459]
[1724863219120,4.01667,2489.7,2489.5,0.04408459]
[1724863219531,4.01632,2489.9,2489.4,4.01694]
[1724863219698,4.01632,2489.9,2489.6,0.0442249]
[1724863219895,4.01632,2489.9,2489.5,0.04432676]
[1724863220126,3.42066143,2490.0,2489.7,0.04412306]
[1724863220336,3.42066143,2490.0,2489.6,8.0775249]
[1724863220537,7.43682143,2490.0,2489.8,0.04403303]
[1724863220693,7.43682143,2490.0,2489.7,0.04413487]
[1724863220900,4.01641,2489.8,2489.2,4.01726]
[1724863221234,7.43684143,2490.0,2489.4,4.01701]
[1724863221531,4.01646,2489.8,2489.2,4.01721]
[1724863221901,8.03295,2489.8,2489.2,4.01721]
[1724863222096,8.03295,2489.8,2489.2,8.03447]
[1724863222309,3.42066143,2490.0,2489.4,4.01701]
[1724863222520,3.42066143,2490.0,2489.1,8.01028283]
[1724863222746,3.42066143,2490.0,2489.4,4.01696]
[1724863222928,3.42066143,2490.0,2489.8,4.0163]
[1724863223304,3.42066143,2490.0,2489.9,8.03244]
[1724863224217,3.42066143,2490.0,2489.9,8.835684]
[1724863224416,3.42066143,2490.0,2489.9,12.851904]
[1724863224628,3.42066143,2490.0,2489.9,15.851904]
[1724863224973,3.42066143,2490.0,2489.9,16.401904]
[1724863225102,1.43e-06,2490.0,2489.9,23.164124]
[1724863225925,1.43e-06,2490.0,2489.9,19.147904]
[1724863226733,1.43e-06,2490.0,2489.9,23.164124]
[1724863227602,1.43e-06,2490.0,2489.9,19.147904]
[1724863229960,1.43e-06,2490.0,2489.9,18.597904]
[1724863230471,1.43e-06,2490.0,2489.9,22.614124]
[1724863231327,1.43e-06,2490.0,2489.9,23.164124]
[1724863232541,1.43e-06,2490.0,2489.9,19.147904]
[1724863233264,1.43e-06,2490.0,2489.9,19.22933062]
[1724863233552,1.43e-06,2490.0,2489.9,8.91711062]
[1724863233714,1.43e-06,2490.0,2489.9,8.11386662]
[1724863234265,1.43e-06,2490.0,2489.9,4.09764662]
[1724863234561,1.43e-06,2490.0,2489.9,0.08142662]
[1724863234758,1.43e-06,2490.0,2489.9,4.09764662]
[1724863234915,1.43e-06,2490.0,2489.9,8.03244]
[1724863235115,1.43e-06,2490.0,2489.9,11.26355871]
[1724863235343,1.43e-06,2490.0,2489.9,15.27977871]
[1724863235716,1.43e-06,2490.0,2489.9,18.82977871]
[1724863235920,1.43e-06,2490.0,2489.9,23.24959871]
[1724863236854,1.43e-06,2490.0,2489.9,27.26581871]
[1724863237419,1.43e-06,2490.0,2489.9,23.24959871]
[1724863239489,1.43e-06,2490.0,2489.9,27.26581871]
[1724863239763,1.43e-06,2490.0,2489.9,23.24959871]
[1724863240135,1.43e-06,2490.0,2489.9,27.26581871]
[1724863240981,1.43e-06,2490.0,2489.9,23.24959871]
[1724863241269,1.43e-06,2490.0,2489.9,27.26581871]
[1724863241425,1.43e-06,2490.0,2489.9,23.24959871]
[1724863241624,1.43e-06,2490.0,2489.9,27.26581871]
[1724863241865,1.43e-06,2490.0,2489.9,23.24959871]
[1724863242468,1.43e-06,2490.0,2489.9,27.26581871]
[1724863242650,1.43e-06,2490.0,2489.9,23.24959871]
[1724863243064,1.43e-06,2490.0,2489.9,27.26581871]
[1724863243449,1.43e-06,2490.0,2489.9,23.24959871]
[1724863244778,1.43e-06,2490.0,2489.9,16.33647871]
[1724863246866,1.43e-06,2490.0,2489.9,32.67850802]
[1724863247266,1.43e-06,2490.0,2489.9,28.66228802]
[1724863247468,1.43e-06,2490.0,2489.9,29.21228802]
[1724863247839,1.43e-06,2490.0,2489.9,33.22850802]
[1724863249281,1.43e-06,2490.0,2489.9,37.46550802]
[1724863249653,1.43e-06,2490.0,2489.9,38.09432528]
[1724863250399,1.43e-06,2490.0,2489.9,39.10039822]
[1724863250604,1.43e-06,2490.0,2489.9,38.09432528]
[1724863250903,1.43e-06,2490.0,2489.9,39.10039956]
[1724863251059,1.43e-06,2490.0,2489.9,38.09432528]
[1724863252004,1.43e-06,2490.0,2489.9,33.30732528]
[1724863252210,1.43e-06,2490.0,2489.9,28.66228802]
[1724863252377,1.43e-06,2490.0,2489.9,13.33647871]
[1724863252576,1.43e-06,2490.0,2489.9,13.96535229]
[1724863253258,1.43e-06,2490.0,2489.9,23.3539616]
[1724863253806,1.43e-06,2490.0,2489.9,19.3377416]
[1724863254184,1.43e-06,2490.0,2489.9,19.8877416]
[1724863254342,1.43e-06,2490.0,2489.9,22.8877416]
[1724863254811,1.43e-06,2490.0,2489.9,26.9039616]
[1724863256433,1.43e-06,2490.0,2489.9,30.9201816]
[1724863256602,1.43e-06,2490.0,2489.9,37.6315816]
[1724863256800,1.43e-06,2490.0,2489.9,38.63778665]
[1724863258305,1.43e-06,2490.0,2489.9,42.65400665]
[1724863258495,2.3285,2491.1,2491.0,12.04335]
[1724863258695,2.3285,2491.1,2491.0,12.12314033]
[1724863259207,2.3755,2491.7,2491.6,4.01348]
[1724863259428,2.3755,2491.7,2491.6,8.10603312]
[1724863259593,2.3755,2491.7,2491.6,0.07907312]
[1724863259797,2.3755,2491.7,2491.4,4.01368]
[1724863260024,2.3755,2491.7,2491.5,4.09272969]
[1724863260331,2.3755,2491.7,2491.5,0.07916969]
[1724863260332,6.38887,2491.7,2491.5,0.07916969]
[1724863260495,6.38898,2491.6,2491.5,0.07916969]
[1724863260696,2.3977,2491.5,2491.1,4.01428]
[1724863260894,2.3977,2491.5,2491.2,0.07945945]
[1724863261116,6.41136,2491.5,2491.2,0.07945945]
[1724863261328,0.05,2492.1,2491.2,0.07945945]
[1724863261329,2.3977,2491.3,2491.2,0.07945945]
[1724863261535,2.3035,2490.6,2490.2,4.01565]